Cogmind - Beta 13 @@@ ROGUE MODE // 2024.04.20 @ 09:03:24 Player: Bace Troncons Result: Destroyed self with Mini Grenade Launcher Performance ------------- Evolutions (1) 500 Regions Visited (3) 600 Robots Destroyed (74) 370 Value Destroyed (1640) 1640 Prototype IDs (10) 200 Alien Tech Used (0) 0 Bonus (46) 46 TOTAL SCORE: 3356 Bonus ------- High Alert Combat Kills 46 Cogmind --------- Core Integrity 0/400 Matter 272/300 Energy 265/265 System Corruption 2% Temperature Cool (0) Movement Treading (160) Location -9/Mines Parts ------- > --- POWER (1) -------- Improved Ion Engine > --- PROPULSION (2) --- Improved Treads Improved Treads > --- UTILITY (4) ------ Large Storage Unit Signal Interpreter Hacking Suite Hacking Suite > --- WEAPON (2) ------- Improved Light Cannon Mini Grenade Launcher > --- INVENTORY (15) --- Light Nuclear Core Improved Treads Improved Treads VTOL Module Trap Scanner Visual Processing Unit Sensor Array Experimental Sensor Array Terrain Scan Processor Improved Utility Shielding Heavy Assault Rifle Datajack Datajack Heavy Hammer Mining Claw Peak State ------------ > --- POWER ------------ Nuclear Core > --- PROPULSION ------- Improved Treads Improved Treads > --- UTILITY ---------- Large Storage Unit Signal Interpreter Hacking Suite Hacking Suite > --- WEAPON ----------- Heavy Assault Rifle Heavy Assault Rifle > --- INVENTORY -------- Improved Ion Engine Light Nuclear Core Improved Treads Improved Treads VTOL Module Visual Processing Unit Terrain Scan Processor Seismic Detector Transport Network Coupler Heavy Assault Rifle Mini Grenade Launcher Datajack Datajack Heavy Hammer [Rating: 21] Favorites ----------- Power Nuclear Core Engine Ion Engine Power Core Nuclear Core Propulsion Light Treads Treads Light Treads Utility Hacking Suite Device Sensor Array Storage Large Storage Unit Processor Signal Interpreter Hackware Hacking Suite Protection Backup Plating I Weapon Heavy Assault Rifle Energy Gun Particle Gun Ballistic Gun Heavy Assault Rifle Ballistic Cannon Improved Light Cannon Launcher Mini Grenade Launcher Impact Weapon Hammer Slashing Weapon Mining Claw Special Melee Weapon Datajack Build | -11 -10 -9 -9 ------- Run | Yrd Mat Mat Min Slots Evolved 2 | . . 2 . Power . | . . . . Propulsion . | . . . . Utility 2 | . . 2 . Weapon . | . . . . Parts Attached 63 | 6 17 38 2 Power 8 | 1 1 6 . Engine 4 | 1 1 2 . Core 4 | . . 4 . Reactor . | . . . . Propulsion 12 | 2 4 6 . Treads 12 | 2 4 6 . Leg . | . . . . Wheel . | . . . . Hover . | . . . . Flight . | . . . . Utility 8 | 1 2 5 . Device 3 | . . 3 . Storage 2 | 1 1 . . Processor 1 | . . 1 . Hackware 2 | . 1 1 . Protection . | . . . . Artifact . | . . . . Weapon 35 | 2 10 21 2 Energy Gun 1 | . . 1 . Energy Cannon . | . . . . Ballistic Gun 21 | 2 5 13 1 Ballistic Cannon 1 | . . 1 . Launcher 1 | . . . 1 Special Weapon . | . . . . Impact Weapon 9 | . 4 5 . Slashing Weapon 1 | . . 1 . Piercing Weapon . | . . . . Special Melee Weapon 1 | . 1 . . Unidentified Prototypes . | . . . . Parts Lost 9 | . 1 8 . Power 3 | . 1 2 . Propulsion 3 | . . 3 . Utility 1 | . . 1 . Weapon 2 | . . 2 . Highest Loss Streak 2 | . 1 2 . To Critical Strikes . | . . . . Average Slot Usage (%) 97 | . 94 98 100 Engine 6 | . 13 3 11 Core 4 | . . 7 . Treads 23 | . 28 21 22 Device 4 | . . 7 . Storage 11 | . 14 11 11 Processor 7 | . . 9 11 Hackware 13 | . 6 14 22 Ballistic Gun 17 | . 20 16 10 Ballistic Cannon 2 | . . 1 11 Impact Weapon 3 | . 6 3 . Naked Turns . | . . . . Heaviest Build 34 | 13 30 34 34 Greatest Support 46 | 40 46 46 46 Greatest Overweight (x) 11 | 2 . 11 . Average Overweight (x) . | . . . . Largest Inventory Capacity 15 | 8 15 15 15 Average Capacity 14 | 6 12 15 15 Most Carried 15 | 1 15 15 15 Average Carried 13 | . 10 14 14 Final Capacity 15 | 8 15 15 15 Final Carried 15 | 1 15 15 15 Class Distribution -------------------- 55% | Mutant 28% | Hacker-Mutant 15% | Scavenger-Mutant Dominant Class ---------------- Mutant | -10/Materials Mutant | -9/Materials Hacker-Mutant | -9/Mines Resources | -11 -10 -9 -9 ----------- Run | Yrd Mat Mat Min Matter Collected 1976 | 155 450 1266 105 Remotely . | . . . . Salvage Created 2259 | . 549 1632 78 Parts 167 | . 41 118 8 Haulers Intercepted 7 | . 1 6 . Recyclers Shooed . | . . . . Parts Field Recycled . | . . . . Retrieved Matter . | . . . . Parts Self-Destructed . | . . . . Prevented . | . . . . Kills | -11 -10 -9 -9 ------- Run | Yrd Mat Mat Min Combat Hostiles Destroyed 54 | . 15 34 5 Melee 1 | . . 1 . Guns 50 | . 15 33 2 Cannons 3 | . . . 3 Classes Destroyed 7 | . 5 2 . Builder 1 | . . 1 . Hauler 7 | . 1 6 . Operator 7 | . 3 4 . Watcher 5 | . 1 4 . Swarmer 23 | . 6 14 3 Grunt 22 | . 9 11 2 Sentry 9 | . . 9 . Best Kill Streak 6 | . 4 6 3 Combat Bots Only 6 | . 3 6 3 Max Kills in Single Turn 1 | . 1 1 1 Gunslinging . | . . . . Exploded . | . . . . Melee 1 | . . 1 . Uniques/NPCs Destroyed . | . . . . Combat | -11 -10 -9 -9 -------- Run | Yrd Mat Mat Min Hostile Shots Fired 335 | . 97 220 18 Missed 84 | . 27 55 2 Damage Taken 2733 | . 706 1866 161 Core 527 | . 125 370 32 Absorbed by Shields . | . . . . Regen/Repaired (Parts) 144 | . 70 74 . Core Remaining (%) 75 | 100 50 . . Volleys Fired 214 | . 56 147 11 Largest 2 | . 2 2 2 Hottest 85 | . 40 85 62 Shots Fired 413 | . 111 281 21 Gun 399 | . 111 278 10 Cannon 13 | . . 3 10 Launcher 1 | . . . 1 Special . | . . . . Kinetic 409 | . 111 278 20 Thermal 3 | . . 3 . Explosive 1 | . . . 1 Electromagnetic . | . . . . Robot Hit Streak 17 | . 13 17 3 Robot Miss Streak 6 | . 6 5 3 Penetration Max . | . . . . Secondary Targets 5 | . 1 4 . Max Gunslinging Chain 1 | . 1 1 . Shots Hit Robots 284 | . 87 186 11 Core Hits 108 | . 31 72 5 Critical Kills . | . . . . Critical Parts Destroyed 4 | . 2 2 . Critical Strikes 4 | . 2 2 . Destroy 1 | . . 1 . Smash 3 | . 2 1 . Melee Attacks 94 | . 48 46 . Impact 78 | . 38 40 . Slashing 6 | . . 6 . Piercing . | . . . . Sneak Attacks 13 | . 12 1 . Combat Hostiles . | . . . . Follow-up Attacks . | . . . . Damage Inflicted 4065 | . 1000 2822 243 Guns 3421 | . 770 2580 71 Cannons 213 | . . 41 172 Explosions . | . . . . Melee 431 | . 230 201 . Ramming . | . . . . Kinetic 3585 | . 770 2572 243 Thermal 49 | . . 49 . Explosive . | . . . . Electromagnetic . | . . . . Impact 431 | . 230 201 . Slashing . | . . . . Piercing . | . . . . Highest Corruption 2 | . . 2 2 Average Corruption 1 | . . 1 2 Corruption Purged . | . . . . Corruption Blocked . | . . . . Effects 21 | . . 7 14 Message Errors 4 | . . 1 3 Matter Fused 5 | . . 1 4 Heat Flow Errors 4 | . . 2 2 Energy Discharges 3 | . . 2 1 Data Loss (minor) 3 | . . 1 2 Data Loss (major) 1 | . . . 1 Alerts 1 | . . . 1 Overload Shots . | . . . . Overflow Damage 227 | . 134 90 3 Projectiles 16 | . . 13 3 Explosions . | . . . . Melee 211 | . 134 77 . Knockbacks 3 | . . 2 1 Impact 2 | . . 2 . Kinetic 1 | . . . 1 Secondary . | . . . . Self-Inflicted Damage 49 | . . . 49 Shots 1 | . . . 1 Rammed . | . . . . Targets Rammed . | . . . . Kicked . | . . . . Crushed . | . . . . Highest Temperature 273 | . 12 273 153 Average Temperature 52 | . 7 66 72 Received Heat Transfer 804 | . 297 501 6 Siege Activations . | . . . . Robots Corrupted . | . . . . Combat Hostiles . | . . . . Parts Fried 1 | . . 1 . Impact Corruptions 7 | . 4 3 . Robots Melted . | . . . . Combat Hostiles . | . . . . Parts Melted . | . . . . Heat Transferred 111 | . . 111 . Parts Sabotaged . | . . . . Parts Stolen . | . . . . Parts Stripped . | . . . . Power Chain Reactions . | . . . . Alert | -11 -10 -9 -9 ------- Run | Yrd Mat Mat Min Peak Influence 623 | . 277 623 393 Initial 238 | . . 3 238 Average 237 | . 87 301 277 Maximum Alert Level 2 | . 1 2 1 Low Security (%) 57 | 100 89 42 50 Level 1 20 | . 10 19 49 Level 2 22 | . . 38 . Level 3 . | . . . . Level 4 . | . . . . Level 5 . | . . . . High Security . | . . . . Max Security . | . . . . Squads Dispatched 14 | . 5 8 1 Investigation 7 | . 2 4 1 Extermination . | . . . . Reinforcement 7 | . 3 4 . Assault . | . . . . Garrison . | . . . . Intercept . | . . . . Searches Triggered . | . . . . Construction Impeded . | . . . . Haulers Reinforced . | . . . . Active Scanning Responses . | . . . . Cargo Convoy Interrupts . | . . . . Stealth | -11 -10 -9 -9 --------- Run | Yrd Mat Mat Min Distress Signals 5 | . 4 1 . Communications Jammed . | . . . . Distress Signals . | . . . . Times Spotted 98 | . 32 59 7 Peak Tracking Total 7 | . 6 7 3 Tactical Retreats 5 | . 1 4 . Traps | -11 -10 -9 -9 ------- Run | Yrd Mat Mat Min Traps Triggered 3 | . 1 2 . Indirectly . | . . . . Trap Hack Attempts . | . . . . Triggered . | . . . . Disarmed . | . . . . Reprogrammed . | . . . . Reused . | . . . . Traps Extracted . | . . . . Installed . | . . . . Triggered . | . . . . Machines | -11 -10 -9 -9 ---------- Run | Yrd Mat Mat Min Machines Disabled 2 | . . 1 1 Max in Single Turn 1 | . . 1 1 Machines Repaired . | . . . . Machines Dismantled . | . . . . Machines Sabotaged . | . . . . Overloaded Fab Kills . | . . . . Hacking | -11 -10 -9 -9 --------- Run | Yrd Mat Mat Min Machines Accessed 22 | . 8 13 1 Terminals 14 | . 5 8 1 Fabricators . | . . . . Repair Stations 3 | . 1 2 . Recycling Units 3 | . 2 1 . Scanalyzers 2 | . . 2 . Garrison Access . | . . . . Total Hacks 97 | . 28 64 5 Successful 68 | . 10 54 4 Failed 28 | . 18 9 1 Catastrophic 2 | . 2 . . Database Lockouts 1 | . . 1 . Manual 14 | . . 10 4 Terminals 52 | . 19 28 5 Fabricators . | . . . . Repair Stations 8 | . 4 4 . Recycling Units 7 | . 5 2 . Scanalyzers 30 | . . 30 . Garrison Access . | . . . . Terminal Hacks 26 | . 4 18 4 Record 1 | . . 1 . Prototype ID Bank 8 | . 2 3 3 Branch Access Points 1 | . . 1 . Emergency Access Points 1 | . . 1 . Terminal Index 1 | . . 1 . Scanalyzer Index 1 | . . 1 . Alert Level 2 | . 1 1 . Locate Traps 1 | . . 1 . Dispatch Records 2 | . . 2 . Patrol Status 2 | . 1 . 1 Transport Status 2 | . . 2 . Registered Components 1 | . . 1 . Zone Layout 3 | . . 3 . Fabricator Hacks . | . . . . Repair Station Hacks 7 | . 3 4 . Scan Component 3 | . 1 2 . Repair 3 | . 1 2 . Refit 1 | . 1 . . Recycling Unit Hacks 5 | . 3 2 . Process 1 | . . 1 . Report Inventory 1 | . 1 . . Retrieve Matter 2 | . 1 1 . Retrieve Components 1 | . 1 . . Scanalyzer 30 | . . 30 . Insert Component 15 | . . 15 . Analyze 15 | . . 15 . Garrison Access Hacks . | . . . . Unauthorized Hacks . | . . . . Terminals . | . . . . Fabricators . | . . . . Repair Stations . | . . . . Recycling Units . | . . . . Scanalyzers . | . . . . Garrison Access . | . . . . Data Cores Recovered . | . . . . Used . | . . . . Hacking Detections 20 | . 7 12 1 Full Trace Events 8 | . 2 5 1 Feedback Events . | . . . . Feedback Blocked . | . . . . Robot Schematics Acquired . | . . . . Robots Built . | . . . . Authchips . | . . . . Time . | . . . . Total Robot Build Rating . | . . . . Part Schematics Acquired 14 | . . 14 . Parts Built . | . . . . Authchips . | . . . . Time . | . . . . Total Part Build Rating . | . . . . Parts Repaired 3 | . 1 2 . Time 90 | . 26 64 . Parts Recycled . | . . . . Recycled Matter 197 | . . 197 . Retrieved Matter 315 | . . 315 . Retrieved Components 10 | . 10 . . Parts Scanalyzed 14 | . . 14 . Part Schematics Acquired 14 | . . 14 . Parts Damaged . | . . . . Bothacking | -11 -10 -9 -9 ------------ Run | Yrd Mat Mat Min Used RIF Installer . | . . . . Robots Hacked 5 | . 5 . . Non-combat 4 | . 4 . . Combat 1 | . 1 . . Robot Hacks Applied 9 | . 9 . . parse_system 5 | . 5 . . no_distress 4 | . 4 . . Relay Couplers Released . | . . . . Fabnet Peak Effective % . | . . . . Robots Rewired . | . . . . Allies Hacked . | . . . . Hacks Repelled . | . . . . Allies | -11 -10 -9 -9 -------- Run | Yrd Mat Mat Min Total Allies . | . . . . Largest Group . | . . . . Highest-Rated Group . | . . . . Highest-Rated Ally . | . . . . Total Orders . | . . . . Ally Attacks . | . . . . Total Damage . | . . . . Kills . | . . . . Allies Corrupted . | . . . . Allies Melted . | . . . . Intel | -11 -10 -9 -9 ------- Run | Yrd Mat Mat Min Robot Analysis Total . | . . . . Derelict Logs Recovered 2 | . . . 2 Drone Launches . | . . . . Drone Recoveries . | . . . . Exploration | -11 -10 -9 -9 ------------- Run | Yrd Mat Mat Min Turns Passed 6970 | 75 1892 4189 814 Spaces Moved 3272 | 43 891 1985 353 Core 6 | 5 . 1 . Treads 3266 | 38 891 1984 353 Legs . | . . . . Wheels . | . . . . Hover . | . . . . Flight . | . . . . Fastest Speed 50 | 50 160 160 160 Average Speed 160 | 153 160 161 160 Slowest Speed 600 | 160 160 600 160 Overloaded Moves . | . . . . Propulsion Burnouts . | . . . . Robots Hopped . | . . . . Cave-ins Triggered . | . . . . Exploration Rate (%) 67 | 3 100 99 66 Regions Visited 3 Branch Regions 1 Pre-discovered Areas . | . . . . Known Exits Taken 1 | . . 1 . Unknown Exits Taken 2 | 1 1 . . Scrap Searched 3 | . . . 3 Spaces Dug 38 | . 19 19 . Terrain Destroyed 39 | . 19 19 1 Melee 38 | . 19 19 . Projectile 1 | . . . 1 AOE . | . . . . Terrain Rammed . | . . . . Walls Destroyed . | . . . . Machines Disabled . | . . . . Actions | -11 -10 -9 -9 --------- Run | Yrd Mat Mat Min Total 4416 | 49 1176 2609 582 Wait 707 | . 144 349 214 Move 3269 | 42 890 1984 353 Hop . | . . . . Pick Up 43 | 1 18 23 1 Fast Attach 12 | 6 . 6 . Attach 7 | . 1 6 . Detach 1 | . . 1 . Swap 44 | . 16 26 2 Drop 25 | . 3 21 1 Fire 214 | . 56 147 11 Melee 94 | . 48 46 . Ram . | . . . . Kick . | . . . . Crush . | . . . . Escape Stasis . | . . . . Rewire . | . . . . Trap . | . . . . Miscellaneous . | . . . . Route ------- -11/Scrapyard -10/Materials (discovered 5 exits: *Mat x3 / [*Min] / [*Sub]) -9/Materials (discovered 4 exits: *Mat x3 / *Min) -9/Mines (discovered 2 exits: *Mat x2) History --------- Turn | Location | Event 14 | -11/Scrapyard | Discovered new exit (range 16) 76 | -11/Scrapyard | Entered Materials 206 | -10/Materials | Discovered new exit (range 13) 312 | -10/Materials | Build established: Mutant 743 | -10/Materials | Discovered new exit (range 6) 824 | -10/Materials | Repaired Assault Rifle 1303 | -10/Materials | Discovered new exit (range 5) 1494 | -10/Materials | Discovered new exit (range 10) 1911 | -10/Materials | Discovered new exit (range 6) 1968 | -10/Materials | Entered another Materials area 1968 | -9/Materials | Evolved 2 slots: Utility x2 2367 | -9/Materials | Discovered new exit (range 16) 2453 | -9/Materials | Identified exit to Mines 2561 | -9/Materials | Central database locked down 2664 | -9/Materials | Discovered new exit (range 10) 2700 | -9/Materials | Identified exit to Materials 2802 | -9/Materials | Core integrity fell below 50% 3331 | -9/Materials | Repaired Sensor Array 3477 | -9/Materials | Repaired Nuclear Core 3477 | -9/Materials | Build established: Scavenger-Mutant 4276 | -9/Materials | Build established: Mutant 4528 | -9/Materials | Core integrity fell below 20% 4975 | -9/Materials | Discovered exit to Materials (range 6) 4996 | -9/Materials | Build established: Hacker-Mutant 5279 | -9/Materials | Discovered exit to Materials (range 4) 6157 | -9/Materials | Entered Mines 6235 | -9/Mines | Discovered exit to Materials (range 5) 6392 | -9/Mines | Learned location of 1 exit from Proximity Caves 6445 | -9/Mines | Found a hidden stash of uninstalled traps 6790 | -9/Mines | Found a damaged Exp. Sensor Array with a note attached 6801 | -9/Mines | Found Prototype Device 6921 | -9/Mines | Discovered exit to Materials (range 8) 6929 | -9/Mines | Received a Rocket Launcher from a helpful Derelict 6943 | -9/Mines | Assembled infested the area 6971 | -9/Mines | Destroyed self with Mini Grenade Launcher Last Messages --------------- Data stored: Storage entrances (x1). 06925_ FG-NF8(g): "They are crazy." 06926_ FG-NF8(g): "Everyone knows a good old rocket launcher goes a long way." 06927_ FG-NF8(g): "Need to get rid of a swarm? Done. Need a big hole in the wall? Done." 06928_ FG-NF8(g): "Need a small hole in the wall? Leave that to the mining laser wimps, I say!" 06929_ FG-NF8(g): "Would you like a rocket launcher? I know I would if I were you, so I'm going to lend you mine." 06929_ FG-NF8(g) slips back into the shadows. 06929_ K-01 Serf collects debris. 06940_ 9F01 T/KB83:ICVOK0B#H,IA,PZYCVFF>HQ3L3SQ 06943_ ALERT: Infestation in the mines, dispatching Demolisher response squad. 06969_ C-30 ARC bursts open, deploying its payload. 06969_ D-53 Grenadier unfolds itself. Map ----- +----------------------------------------------------+ | ????????????????????????????????????????????? | | ????????????????????????????????????????????? | | ????????????????????????????????????????????? | | ????????????????????????????????????????????? | | ????????????????????????????????????????????? | | ????????????????????????????????????????????? | | ????????????????????????????????????????????? | | ????????????????????????????????????????????? | | ????????????????????????????????????????????? | | ????????????????????????????????????????????? | | ????????????????????????????????????????????? | | ????????????????????????????????????????????? | | ????????????????????????????????????????????? | | ????????????????????????????????????????????? | | ????????????????????????????????????????????? | | ????????????# ??????????????????????????????? | | ????????????# ?????????????????????????????? | | ?????####???# ?????????????????????????????? | | ?????# #??# ?????????????????????????????? | | ??????# #?# ??????####???????????????????? | | ???????# ## ?????## ##??????????????????? | | ????????# ##??## < #??????????????????? | | ???????## #??# #??????????????????? | | ?????### #### #??????????????????? | | ????## ##??????????????????? | | ???## """ ] @ ##???????????????????? | | ???# """ dd ## ##????????????????????? | | ???# """ #####?????????????????????? | | ????# % #?????????????????????????? | | ?????# #?????????????????????????? | | ?????#### ##???????????????####??????? | | ????????## ##????????????????# ##?????? | | ?????????## ##????????????????# #?????? | | ?????????## #????#######?????# ##????? | | ??????#### #????# #????## #????? | | ?????## ###### ## #???## #????? | | ?????# ## #??## #????? | | ????# ## #?## #?????? | | ????# ########### ### #?????? | | ????## ##???????## ## #?????# | | ?????### #????????# ##### #????## | | ???????### ##???????# """ #???# ###### | | ?????????## #???????# """ ##??# | | ??????????# #####???# """ ##?######## | | ???######## #???## #????????## | | ??## ## #### #????### #?????????# | | ??## ## ##??# #??????## #?????????? | | ???# ## #???# #???????# ##?????????? | | ???# #?### ######### ##??????????? | | ???# "" ## #?# ###???????????? | +----------------------------------------------------+ Best States ------------- Heat Dissipation 28 Energy Generation 14 Energy Capacity 265 Matter Stores 300 Matter Capacity 300 Sight Range 16 Robot Scan Range 14 Terrain Scan Density 10 Armor Coverage 80 Evasion (%) 40 Recoil Reduction 2 Offensive Hacking 20 Item Schematics ----------------- VTOL Module | -9/Materials | Scanalyzed Mni. Grenade Launcher | -9/Materials | Scanalyzed Sensor Array | -9/Materials | Scanalyzed Hvy. Assault Rifle | -9/Materials | Scanalyzed Datajack | -9/Materials | Scanalyzed Hvy. Hammer | -9/Materials | Scanalyzed Imp. Utility Shielding | -9/Materials | Scanalyzed Trap Scanner | -9/Materials | Scanalyzed Transport Network Coupler | -9/Materials | Scanalyzed Visual Processing Unit | -9/Materials | Scanalyzed Mining Claw | -9/Materials | Scanalyzed Lgt. Nuclear Core | -9/Materials | Scanalyzed Imp. Treads | -9/Materials | Scanalyzed Terrain Scan Processor | -9/Materials | Scanalyzed Robot Schematics ------------------ None Fabricated ------------ Nothing Alien Tech Used ----------------- None Achievements -------------- None Challenges ------------ None Game ------ Seed TargetDisruptionAccelerator Manual? 0 Play Time 01:07:16 Cumulative 31.5 hours Start 2024.04.20 @ 07:30:18 End 2024.04.20 @ 09:03:24 Sessions 1 Manual Loads 0 Difficulty Rogue Special Mode None Game No. 53 Rogue 53 Adventurer 0 Explorer 0 Win Type - Total 0 Types 0/0/0/0/0/0/0/0/0 Lore% 21 Gallery% 27 Achievement% 23 Wizard Run 0 Options --------- Layout 1 ASCII 0 Keyboard 1 Movement Numpad Keybinds 0 Fullscreen 1 Font 24/Smallcaps Map View 50x35 Zoom Use 0% Tactical HUD 1 Map Filters NONE Filters NONE Steam 1 RUN: 4560f7c3-fd40-4e40-861e-a8a11ce26cca